fUSD/lending_fUSD_20250503
["ID","MTS","AMOUNT","RATE_DAILY","PERIOD"]
[359754825,1746300648057,-238.0,0.0002,2]
[359754826,1746300648066,-238.0,0.0002,2]
[359754827,1746300648076,-238.0,0.0002,2]
[359754828,1746300648087,-238.0,0.0002,2]
[359754829,1746300648096,-238.0,0.0002,2]
[359754830,1746300648106,-238.0,0.0002,2]
[359754831,1746300648115,-238.0,0.0002,2]
[359754832,1746300648125,-109471.68885638,0.0002,2]
[359754833,1746300648134,-151.0,0.0002,2]
[359754834,1746300648144,-151.0,0.0002,2]
[359754835,1746300648154,-151.0,0.0002,2]
[359754836,1746300648164,-151.0,0.0002,2]
[359754837,1746300648173,-151.0,0.0002,2]
[359754838,1746300648183,-151.0,0.0002,2]
[359754839,1746300648193,-151.0,0.0002,2]
[359754840,1746300648204,-151.0,0.0002,2]
[359754841,1746300648214,-151.0,0.0002,2]
[359754842,1746300648223,-158.39268,0.0002,2]
[359754843,1746300648233,-150.0,0.0002,2]
[359754844,1746300648243,-151.0,0.0002,2]
[359754845,1746300648253,-250.183,0.0002,2]
[359754846,1746300648263,-167.031,0.0002,2]
[359754847,1746300648273,-242.481,0.0002,2]
[359754848,1746300648282,-156.064,0.0002,2]
[359754849,1746300648292,-153.793,0.0002,2]
[359754850,1746300648302,-245.67,0.0002,2]
[359754851,1746300648311,-253.434,0.0002,2]
[359754852,1746300648321,-182.692,0.0002,2]
[359754853,1746300648330,-202.953,0.0002,2]
[359754854,1746300648340,-259.8,0.0002,2]
[359754855,1746300648349,-155.0,0.0002,2]
[359754856,1746300648359,-152.05,0.0002,2]
[359754857,1746300648373,-150.0,0.0002,2]
[359754858,1746300648383,-150.0,0.0002,2]
[359754859,1746300648393,-150.0,0.0002,2]
[359754860,1746300648403,-352.11,0.0002,2]
[359754861,1746300648413,-352.11,0.0002,2]
[359754862,1746300648423,-150.0,0.0002,2]
[359754863,1746300648433,-150.0,0.0002,2]
[359754864,1746300648443,-150.0,0.0002,2]
[359754865,1746300648454,-352.11,0.0002,2]
[359754866,1746300648464,-150.0,0.0002,2]
[359754867,1746300648474,-311.31,0.0002,2]
[359754868,1746300648484,-352.11,0.0002,2]
[359754869,1746300648494,-162.26,0.0002,2]
[359754870,1746300648505,-162.26,0.0002,2]
[359754871,1746300648515,-150.0,0.0002,2]
[359754872,1746300648524,-352.11,0.0002,2]
[359754873,1746300648535,-162.26,0.0002,2]
[359754874,1746300648544,-352.11,0.0002,2]
[359754875,1746300648554,-1268.67,0.0002,2]
[359754876,1746300648564,-150.0,0.0002,2]
[359754877,1746300648574,-456.22,0.0002,2]
[359754878,1746300648583,-809.59,0.0002,2]
[359754879,1746300648593,-150.0,0.0002,2]
[359754880,1746300648603,-801.53,0.0002,2]
[359754881,1746300648613,-700.59,0.0002,2]
[359754882,1746300648622,-390.37,0.0002,2]
[359754883,1746300648632,-451.65,0.0002,2]
[359754884,1746300648642,-162.21,0.0002,2]
[359754885,1746300648652,-801.53,0.0002,2]
[359754886,1746300648662,-352.02,0.0002,2]
[359754887,1746300648672,-162.21,0.0002,2]
[359754888,1746300648682,-351.81,0.0002,2]
[359754889,1746300648696,-801.78,0.0002,2]
[359754890,1746300648707,-150.0,0.0002,2]
[359754891,1746300648716,-155.35405,0.0002,2]
[359754892,1746300648727,-211.0,0.0002,2]
[359754893,1746300648737,-211.0,0.0002,2]
[359754894,1746300648747,-211.0,0.0002,2]
[359754895,1746300648757,-211.0,0.0002,2]
[359754896,1746300648766,-211.0,0.0002,2]
[359754897,1746300648776,-162.21,0.0002,2]
[359754898,1746300648787,-360.1,0.0002,2]
[359754899,1746300648796,-969.99,0.0002,2]
[359754900,1746300648807,-150.0,0.0002,2]
[359754901,1746300648816,-150.0,0.0002,2]
[359754902,1746300648827,-150.0,0.0002,2]
[359754903,1746300648837,-150.0,0.0002,2]
[359754904,1746300648847,-150.0,0.0002,2]
[359754905,1746300648857,-150.0,0.0002,2]
[359754906,1746300648868,-625.8878442,0.0002,2]
[359754907,1746300648877,-911.44,0.0002,2]
[359754908,1746300648887,-456.07,0.0002,2]
[359754909,1746300648898,-153.32,0.0002,2]
[359754910,1746300648908,-570.54266518,0.0002,2]
[359754911,1746300648918,-162.21,0.0002,2]
[359754912,1746300648927,-556.84562776,0.0002,2]
[359754913,1746300648937,-352.02,0.0002,2]
[359754914,1746300648947,-546.06995888,0.0002,2]
[359754915,1746300648958,-3471.11014134,0.0002,2]
[359754916,1746300648968,-451.65,0.0002,2]
[359754917,1746300648979,-162.21,0.0002,2]
[359754918,1746300648989,-352.02,0.0002,2]
[359754919,1746300648999,-456.07,0.0002,2]
[359754920,1746300649010,-299.58,0.0002,2]
[359754921,1746300649020,-351.92,0.0002,2]
[359754922,1746300649029,-150.0,0.0002,2]
[359754923,1746300649039,-150.0,0.0002,2]
[359754924,1746300649050,-467.57,0.0002,2]
[359754925,1746300649060,-150.0,0.0002,2]
[359754926,1746300649070,-159.24,0.0002,2]
[359754927,1746300649079,-328.41,0.0002,2]
[359754928,1746300649089,-456.07,0.0002,2]
[359754929,1746300649100,-902.3,0.0002,2]
[359754930,1746300649110,-162.16,0.0002,2]
[359754931,1746300649120,-150.0,0.0002,2]
[359754932,1746300649130,-456.07,0.0002,2]
[359754933,1746300649140,-351.92,0.0002,2]
[359754934,1746300649150,-150.0,0.0002,2]
[359754935,1746300649160,-324.32,0.0002,2]
[359754936,1746300649170,-150.0,0.0002,2]
[359754937,1746300649180,-888.62,0.0002,2]
[359754938,1746300649190,-704.13,0.0002,2]
[359754939,1746300649200,-2000.0,0.0002,2]
[359754940,1746300649210,-200.0,0.0002,2]
[359754941,1746300649220,-408.68,0.0002,2]
[359754942,1746300649230,-150.0,0.0002,2]
[359754943,1746300649240,-150.0,0.0002,2]
[359754944,1746300649250,-469.93,0.0002,2]
[359754945,1746300649260,-703.8,0.0002,2]
[359754946,1746300649269,-1154.02,0.0002,2]
[359754947,1746300649279,-162.26,0.0002,2]
[359754948,1746300649289,-352.11,0.0002,2]
[359754949,1746300649300,-414.59,0.0002,2]
[359754950,1746300649311,-1314.889,0.0002,2]
[359754951,1746300649321,-816.0,0.0002,2]
[359754952,1746300649331,-1154.02,0.0002,2]
[359754953,1746300649342,-150.0,0.0002,2]
[359754954,1746300649352,-704.22,0.0002,2]
[359754955,1746300649363,-150.0,0.0002,2]
[359754956,1746300649374,-1451.0,0.0002,2]
[359754957,1746300649384,-1040.566,0.0002,2]
[359754958,1746300649394,-2072.0,0.0002,2]
[359754959,1746300649404,-1154.02,0.0002,2]
[359754960,1746300649414,-352.11,0.0002,2]
[359754961,1746300649670,-912.0,0.0002,2]
[359754962,1746300649680,-150.0,0.0002,2]
[359754963,1746300649693,-649.021,0.0002,2]
[359754964,1746300649703,-550.0,0.0002,2]
[359754965,1746300649712,-151.93,0.0002,2]
[359754966,1746300649722,-233.97465483,0.0002,2]
[359754967,1746300649765,-450.0,0.00019597,2]
[359754968,1746300649774,-222.24534517,0.0002,2]
[359754969,1746300649783,-352.11,0.0002,2]
[359754970,1746300649793,-1154.02,0.0002,2]
[359754971,1746300649802,-150.0,0.0002,2]
[359754972,1746300649812,-1154.02,0.0002,2]
[359754973,1746300649822,-150.0,0.0002,2]
[359754974,1746300649832,-456.22,0.0002,2]
[359754975,1746300649843,-352.11,0.0002,2]
[359754976,1746300649854,-732.25,0.0002,2]
[359754977,1746300649863,-150.0,0.0002,2]
[359754978,1746300649872,-451.54,0.0002,2]
[359754979,1746300649883,-150.0,0.0002,2]
[359754980,1746300649893,-456.22,0.0002,2]
[359754981,1746300649902,-352.11,0.0002,2]
[359754982,1746300649911,-1154.02,0.0002,2]
[359754983,1746300649921,-451.54,0.0002,2]
[359754984,1746300649930,-349.68,0.0002,2]
[359754985,1746300649940,-456.22,0.0002,2]
[359754986,1746300649950,-352.11,0.0002,2]
[359754987,1746300649959,-150.0,0.0002,2]
[359754988,1746300649968,-902.93,0.0002,2]
[359754989,1746300649978,-162.26,0.0002,2]
[359754990,1746300649987,-150.0,0.0002,2]
[359754991,1746300649997,-456.22,0.0002,2]
[359754992,1746300650007,-150.0,0.0002,2]
[359754993,1746300650017,-352.11,0.0002,2]
[359754994,1746300650030,-451.65,0.0002,2]
[359754995,1746300650040,-352.11,0.0002,2]
[359754996,1746300650050,-150.0,0.0002,2]
[359754997,1746300650060,-456.22,0.0002,2]
[359754998,1746300650070,-162.26,0.0002,2]
[359754999,1746300650079,-200.0,0.0002,2]
[359755000,1746300650088,-451.65,0.0002,2]
[359755001,1746300650098,-162.26,0.0002,2]
[359755002,1746300650107,-150.0,0.0002,2]
[359755003,1746300650117,-456.22,0.0002,2]
[359755004,1746300650128,-150.0,0.0002,2]
[359755005,1746300650138,-352.11,0.0002,2]
[359755006,1746300650148,-162.26,0.0002,2]
[359755007,1746300650159,-451.65,0.0002,2]
[359755008,1746300650169,-352.11,0.0002,2]
[359755009,1746300650178,-456.22,0.0002,2]
[359755010,1746300650190,-150.0,0.0002,2]
[359755011,1746300650200,-451.39,0.0002,2]
[359755012,1746300650209,-162.26,0.0002,2]
[359755013,1746300650219,-151.71,0.0002,2]
[359755014,1746300650229,-352.11,0.0002,2]
[359755015,1746300650239,-456.22,0.0002,2]
[359755016,1746300650248,-150.0,0.0002,2]
[359755017,1746300650258,-451.65,0.0002,2]
[359755018,1746300650267,-162.26,0.0002,2]
[359755019,1746300650277,-300.0,0.0002,2]
[359755020,1746300650286,-352.11,0.0002,2]
[359755021,1746300650296,-456.22,0.0002,2]
[359755022,1746300650306,-451.65,0.0002,2]
[359755023,1746300650316,-150.0,0.0002,2]
[359755024,1746300650326,-162.26,0.0002,2]
[359755025,1746300650335,-150.0,0.0002,2]
[359755026,1746300650344,-456.22,0.0002,2]
[359755027,1746300650354,-352.11,0.0002,2]
[359755028,1746300650363,-162.26,0.0002,2]
[359755029,1746300650373,-352.11,0.0002,2]
[359755030,1746300650383,-456.22,0.0002,2]
[359755031,1746300650392,-300.0,0.0002,2]
[359755032,1746300650401,-451.65,0.0002,2]
[359755033,1746300650412,-456.22,0.0002,2]
[359755034,1746300650422,-352.11,0.0002,2]
[359755035,1746300650435,-150.0,0.0002,2]
[359755036,1746300650444,-162.26,0.0002,2]
[359755037,1746300650454,-451.65,0.0002,2]
[359755038,1746300650463,-162.26,0.0002,2]
[359755039,1746300650473,-456.22,0.0002,2]
[359755040,1746300650482,-150.0,0.0002,2]
[359755041,1746300650492,-352.11,0.0002,2]
[359755042,1746300650501,-341.88,0.0002,2]
[359755043,1746300650511,-930.03,0.0002,2]
[359755044,1746300650520,-150.0,0.0002,2]
[359755045,1746300650529,-150.0,0.0002,2]
[359755046,1746300650539,-352.11,0.0002,2]
[359755047,1746300650548,-456.22,0.0002,2]
[359755048,1746300650558,-162.26,0.0002,2]
[359755049,1746300650567,-451.54,0.0002,2]
[359755050,1746300650577,-352.11,0.0002,2]
[359755051,1746300650586,-456.22,0.0002,2]
[359755052,1746300650595,-305.85,0.0002,2]
[359755053,1746300650604,-200.0,0.0002,2]
[359755054,1746300650614,-243697.41182672,0.0002,2]
[359755055,1746300650641,-194.62500015,0.00019871,2]
[359755056,1746300650650,-4140.52284969,0.0002,2]
[359755057,1746300651358,-345.45806187,0.00019597,2]
[359755058,1746300651374,-104.54193813,0.00019597,2]
[359755059,1746300651383,-450.0,0.00019597,2]
[359755060,1746300651393,-2.54279287,0.00019871,2]
[359755061,1746300651413,-447.45720713,0.00019871,2]
[359755062,1746300651423,-100244.1881579,0.0002,2]
[359755063,1746300651434,-5914.708596,0.0002,2]
[359755064,1746300721429,726.71,0.00019085,2]
[359755065,1746300814944,2371.47130575,0.00019498,2]
[359755066,1746300814967,4199.0172287,0.00019498,2]
[359755067,1746300922958,3246.85892654,0.00019498,2]
[359755069,1746300948974,151.31467587,0.00019498,2]
[359755070,1746301065125,-150.0,0.00019541,2]
[359755071,1746301065148,-5.66344872,0.00019543,2]
[359755072,1746301086106,20817.57,0.00018803,2]
[359755073,1746301114991,277.74,0.00018786,2]
[359755074,1746301215137,-203.2957963,0.00019516,2]
[359755075,1746301309317,2922.17303385,0.00019497,2]
[359755076,1746301335799,757.02,0.0001686,2]
[359755077,1746301336014,757.02,0.00019124,2]
[359755078,1746301344976,155.66344872,0.00019442,2]
[359755079,1746301367475,166.68,0.00019336,2]
[359755080,1746301385347,6651.23131931,0.00019496,2]
[359755081,1746301408174,155.77,0.00018724,2]
[359755082,1746301645904,-300.0,0.0001954,2]
[359755083,1746301645926,-300.0,0.0001954,2]
[359755084,1746301645947,-4400.0,0.00019541,2]
[359755085,1746301654521,250.0,0.00017,2]
[359755086,1746301655076,-2251.23131924,0.00019541,2]
[359755087,1746301655104,-1200.0,0.00019541,2]
[359755088,1746301655127,-300.0,0.00019541,2]
[359755089,1746301655149,-250.0,0.00019541,2]
[359755090,1746301655172,-200.0,0.00019541,2]
[359755091,1746301655194,-200.0,0.00019554,2]
[359755092,1746301655216,-151.0,0.00019585,2]
[359755093,1746301655237,-151.0,0.00019585,2]
[359755094,1746301655259,-296.76868076,0.00019585,2]
[359755095,1746301655477,300.0,0.00019,2]
[359755096,1746301672807,-371.88317681,0.00019585,2]
[359755097,1746301672829,-207.4,0.00019585,2]
[359755098,1746301672851,-4420.71682319,0.00019586,2]
[359755099,1746301683410,-2230.51449605,0.00019586,2]
[359755100,1746301683432,-250.0,0.0001959,2]
[359755101,1746301683453,-300.0,0.00019594,2]
[359755102,1746301683474,-850.0,0.00019594,2]
[359755103,1746301683507,-500.0,0.00019595,2]
[359755104,1746301683537,-500.0,0.00019595,2]
[359755105,1746301683567,-369.48550395,0.00019595,2]
[359755106,1746301695461,-200.0,0.0001959,2]
[359755107,1746301695483,-200.0,0.00019594,2]
[359755108,1746301695512,-130.51449605,0.00019595,2]
[359755109,1746301695538,-500.0,0.00019595,2]
[359755110,1746301695564,-500.0,0.00019595,2]
[359755111,1746301695591,-500.0,0.00019595,2]
[359755112,1746301695617,-500.0,0.00019595,2]
[359755113,1746301695643,-503.99655024,0.00019595,2]
[359755114,1746301695671,-500.0,0.00019595,2]
[359755115,1746301695697,-500.0,0.00019595,2]
[359755116,1746301695722,-500.0,0.00019595,2]
[359755117,1746301695749,-465.48895371,0.00019595,2]
[359755118,1746301695859,2629.95573051,0.00019496,2]
[359755119,1746301708078,-2629.95573045,0.00019541,2]
[359755120,1746301708102,-2370.04426955,0.00019586,2]
[359755121,1746301728901,-5000.0,0.00019582,2]
[359755122,1746301828917,-203.2957963,0.0001956,2]
[359755123,1746301828939,-1200.0,0.00019581,2]
[359755124,1746301828959,-300.0,0.00019581,2]
[359755125,1746301828979,-3296.7042037,0.00019582,2]
[359755129,1746301831901,-328.25091138,0.00019582,2]
[359755132,1746301831913,-567.02785561,0.00019582,2]
[359755133,1746301831924,-1419.41840479,0.00019582,2]
[359755134,1746301831935,-896.14601445,0.00019582,2]
[359755135,1746301831946,-4586.06303229,0.00019582,2]
[359755137,1746301831961,-365.60000001,0.00019582,2]
[359755140,1746301831977,-10491.2953151,0.00019582,2]
[359755141,1746301831988,-398.05286501,0.00019582,2]
[359755142,1746301832001,-513.74121267,0.00019582,2]
[359755143,1746301832022,-450.0,0.00019581,2]
[359755144,1746301832032,-4593.40180296,0.00019582,2]
[359755147,1746301832056,-5933.588277,0.00019582,2]
[359755149,1746301832067,-253.95426103,0.00019582,2]
[359755151,1746301832077,-793.89885155,0.00019582,2]
[359755163,1746301837587,-288424.30758681,0.00019582,2]
[359755167,1746301837743,-1539.83563921,0.00019582,2]
[359755168,1746301837848,-435.5646874,0.00019582,2]
[359755169,1746301837861,-26884.26479044,0.00019582,2]
[359755205,1746301838746,-500.0,0.00019582,2]
[359755206,1746301839820,-169027.40189379,0.00019582,2]
[359755207,1746301839830,-250.0,0.00019584,2]
[359755208,1746301839839,-200.0,0.00019584,2]
[359755209,1746301839848,-259.9114609,0.00019586,2]
[359755210,1746301839858,-34.51104629,0.00019595,2]
[359755211,1746301839867,-500.0,0.00019595,2]
[359755212,1746301839876,-500.0,0.00019595,2]
[359755213,1746301839885,-500.0,0.00019595,2]
[359755214,1746301839895,-500.0,0.00019595,2]
[359755215,1746301839906,-500.0,0.00019595,2]
[359755216,1746301839918,-500.0,0.00019595,2]
[359755217,1746301839928,-500.0,0.00019595,2]
[359755218,1746301839938,-500.0,0.00019595,2]
[359755219,1746301839948,-500.0,0.00019595,2]
[359755220,1746301839959,-150.99,0.00019595,2]
[359755221,1746301839967,-9999.99,0.00019595,2]
[359755222,1746301839977,-150.99,0.00019595,2]
[359755223,1746301839986,-450.0,0.00019595,2]
[359755224,1746301839995,-290.81358307,0.00019595,2]
[359755225,1746301840004,-450.0,0.00019595,2]
[359755226,1746301840014,-450.0,0.00019595,2]
[359755227,1746301840024,-450.0,0.00019595,2]
[359755228,1746301840034,-250.0,0.00019595,2]
[359755229,1746301840044,-450.0,0.00019595,2]
[359755230,1746301840057,-450.0,0.00019595,2]
[359755231,1746301840066,-450.0,0.00019595,2]
[359755232,1746301840077,-450.0,0.00019595,2]
[359755233,1746301840087,-450.0,0.00019595,2]
[359755234,1746301840098,-450.0,0.00019595,2]
[359755235,1746301840108,-500.0,0.00019595,2]
[359755236,1746301840117,-450.0,0.00019595,2]
[359755237,1746301840127,-450.0,0.00019595,2]
[359755238,1746301840137,-450.0,0.00019595,2]
[359755239,1746301840154,-450.0,0.00019595,2]
[359755240,1746301840163,-450.0,0.00019595,2]
[359755241,1746301840172,-450.0,0.00019595,2]
[359755242,1746301840183,-450.0,0.00019595,2]
[359755243,1746301840192,-450.0,0.00019595,2]
[359755244,1746301840201,-462.31,0.00019595,2]
[359755245,1746301840210,-450.0,0.00019595,2]
[359755246,1746301840220,-450.0,0.00019595,2]
[359755247,1746301840229,-450.0,0.00019595,2]
[359755248,1746301840239,-1097.27,0.00019595,2]
[359755249,1746301840248,-500.0,0.00019595,2]
[359755250,1746301840257,-194.65,0.00019595,2]
[359755251,1746301840267,-450.0,0.00019595,2]
[359755252,1746301840276,-481.47,0.00019595,2]
[359755253,1746301840285,-450.0,0.00019595,2]
[359755254,1746301840294,-268.04,0.00019595,2]
[359755255,1746301840303,-450.0,0.00019595,2]
[359755256,1746301840312,-450.0,0.00019595,2]
[359755257,1746301840321,-450.0,0.00019595,2]
[359755258,1746301840330,-577.35,0.00019595,2]
[359755259,1746301840340,-450.0,0.00019595,2]
[359755261,1746301840349,-450.0,0.00019595,2]
[359755263,1746301840358,-1040.58,0.00019595,2]
[359755265,1746301840368,-560.25,0.00019595,2]
[359755267,1746301840377,-514.89,0.00019595,2]
[359755269,1746301840386,-450.0,0.00019595,2]
[359755271,1746301840395,-5307.41,0.00019595,2]
[359755273,1746301840404,-450.0,0.00019595,2]
[359755275,1746301840413,-450.0,0.00019595,2]
[359755277,1746301840423,-450.0,0.00019595,2]
[359755279,1746301840432,-1340.13,0.00019595,2]
[359755281,1746301840441,-450.0,0.00019595,2]
[359755282,1746301840450,-450.0,0.00019595,2]
[359755284,1746301840460,-450.0,0.00019595,2]
[359755285,1746301840470,-450.0,0.00019595,2]
[359755286,1746301840479,-535.38,0.00019595,2]
[359755287,1746301840489,-450.0,0.00019595,2]
[359755288,1746301840498,-450.0,0.00019595,2]
[359755289,1746301840507,-450.0,0.00019595,2]
[359755290,1746301840516,-450.0,0.00019595,2]
[359755291,1746301840525,-720.19,0.00019595,2]
[359755292,1746301840535,-450.0,0.00019595,2]
[359755293,1746301840544,-450.0,0.00019595,2]
[359755294,1746301840554,-450.0,0.00019595,2]
[359755295,1746301840563,-450.0,0.00019595,2]
[359755296,1746301840572,-450.0,0.00019595,2]
[359755297,1746301840582,-450.0,0.00019595,2]
[359755298,1746301840591,-450.0,0.00019595,2]
[359755299,1746301840602,-1785.18,0.00019595,2]
[359755300,1746301840611,-536.35,0.00019595,2]
[359755301,1746301840621,-450.0,0.00019595,2]
[359755302,1746301840630,-667.39,0.00019595,2]
[359755303,1746301840639,-450.0,0.00019595,2]
[359755304,1746301840648,-450.0,0.00019595,2]
[359755305,1746301840658,-450.0,0.00019595,2]
[359755306,1746301840667,-450.0,0.00019595,2]
[359755307,1746301840676,-450.0,0.00019595,2]
[359755308,1746301840685,-450.0,0.00019595,2]
[359755309,1746301840694,-450.0,0.00019595,2]
[359755310,1746301840703,-450.0,0.00019595,2]
[359755311,1746301840712,-4084.64,0.00019595,2]
[359755312,1746301840721,-3713.12,0.00019595,2]
[359755313,1746301840731,-450.0,0.00019595,2]
[359755314,1746301840740,-173.27,0.00019595,2]
[359755315,1746301840749,-450.0,0.00019595,2]
[359755316,1746301840759,-450.0,0.00019595,2]
[359755317,1746301840767,-450.0,0.00019595,2]
[359755318,1746301840776,-500.0,0.00019595,2]
[359755319,1746301840785,-500.0,0.00019595,2]
[359755320,1746301840796,-500.0,0.00019595,2]
[359755321,1746301840805,-500.0,0.00019595,2]
[359755322,1746301840814,-500.0,0.00019595,2]
[359755323,1746301840823,-500.0,0.00019595,2]
[359755324,1746301840832,-500.0,0.00019595,2]
[359755325,1746301840841,-500.0,0.00019595,2]
[359755326,1746301840850,-418.94005834,0.00019595,2]
[359755327,1746301840859,-500.0,0.00019595,2]
[359755328,1746301840868,-450.0,0.00019595,2]
[359755329,1746301840878,-450.0,0.00019595,2]
[359755330,1746301840887,-450.0,0.00019595,2]
[359755331,1746301840895,-450.0,0.00019595,2]
[359755332,1746301840904,-450.0,0.00019595,2]
[359755333,1746301840913,-450.0,0.00019595,2]
[359755334,1746301840923,-450.0,0.00019595,2]
[359755335,1746301840932,-450.0,0.00019595,2]
[359755336,1746301840943,-519.44,0.00019595,2]
[359755337,1746301840953,-2551.38,0.00019595,2]
[359755338,1746301840964,-450.0,0.00019595,2]
[359755339,1746301840975,-467.71,0.00019595,2]
[359755340,1746301840984,-450.0,0.00019595,2]
[359755341,1746301840994,-888.82,0.00019595,2]
[359755342,1746301841003,-450.0,0.00019595,2]
[359755343,1746301841013,-503.99655024,0.00019595,2]
[359755344,1746301841022,-384.56978007,0.00019596,2]
[359755345,1746301841031,-450.0,0.00019596,2]
[359755346,1746301841040,-450.0,0.00019596,2]
[359755347,1746301841049,-450.0,0.00019596,2]
[359755348,1746301841059,-450.0,0.00019596,2]
[359755349,1746301841068,-609.98,0.00019596,2]
[359755350,1746301841077,-450.0,0.00019596,2]
[359755351,1746301841086,-450.0,0.00019596,2]
[359755352,1746301841095,-450.0,0.00019596,2]
[359755353,1746301841105,-450.0,0.00019596,2]
[359755354,1746301841114,-450.0,0.00019596,2]
[359755355,1746301841123,-450.0,0.00019596,2]
[359755356,1746301841132,-450.0,0.00019596,2]
[359755357,1746301841143,-450.0,0.00019596,2]
[359755358,1746301841153,-587.3,0.00019596,2]
[359755359,1746301841163,-450.0,0.00019596,2]
[359755360,1746301841173,-450.0,0.00019596,2]
[359755361,1746301841183,-450.0,0.00019596,2]
[359755362,1746301841193,-450.0,0.00019596,2]
[359755363,1746301841203,-450.0,0.00019596,2]
[359755364,1746301841212,-450.0,0.00019596,2]
[359755365,1746301841221,-543.23,0.00019596,2]
[359755366,1746301841231,-497.99,0.00019596,2]
[359755367,1746301841243,-450.0,0.00019596,2]
[359755368,1746301841253,-464.37,0.00019596,2]
[359755369,1746301841263,-450.0,0.00019596,2]
[359755370,1746301841271,-450.0,0.00019596,2]
[359755371,1746301841280,-450.0,0.00019596,2]
[359755372,1746301841289,-889.35,0.00019596,2]
[359755373,1746301841298,-450.0,0.00019596,2]
[359755374,1746301841308,-450.0,0.00019596,2]
[359755375,1746301841319,-605.12,0.00019596,2]
[359755376,1746301841330,-450.0,0.00019596,2]
[359755377,1746301841339,-450.0,0.00019596,2]
[359755378,1746301841348,-450.0,0.00019596,2]
[359755379,1746301841357,-450.0,0.00019596,2]
[359755380,1746301841367,-450.0,0.00019596,2]
[359755381,1746301841376,-450.0,0.00019596,2]
[359755382,1746301841385,-450.0,0.00019596,2]
[359755383,1746301841394,-450.0,0.00019596,2]
[359755384,1746301841405,-450.0,0.00019596,2]
[359755385,1746301841414,-450.0,0.00019596,2]
[359755386,1746301841424,-450.0,0.00019596,2]
[359755387,1746301841433,-450.0,0.00019596,2]
[359755388,1746301841442,-450.0,0.00019596,2]
[359755389,1746301841452,-450.0,0.00019596,2]
[359755390,1746301841461,-450.0,0.00019596,2]
[359755391,1746301841470,-550.25,0.00019596,2]
[359755392,1746301841479,-537.08,0.00019596,2]
[359755393,1746301841488,-450.0,0.00019596,2]
[359755394,1746301841497,-450.0,0.00019596,2]
[359755395,1746301841506,-558.96235802,0.00019596,2]
[359755396,1746301841516,-450.0,0.00019596,2]
[359755397,1746301841525,-450.0,0.00019596,2]
[359755398,1746301841534,-450.0,0.00019596,2]